Cogmind - Beta 14 @@@ ROGUE MODE // 2024.12.27 @ 14:51:01 Player: Devolved Result: Destroyed by G-34 Mercenary with Small Laser Performance ------------- Evolutions (0) 0 Regions Visited (1) 200 Robots Destroyed (15) 75 Value Destroyed (163) 163 Prototype IDs (0) 0 Alien Tech Used (0) 0 Bonus (0) 0 TOTAL SCORE: 438 Bonus ------- None Cogmind --------- Core Integrity 0/250 Matter 300/300 Energy 99/100 System Corruption 2% Temperature Cool (6) Movement Core (100) Ox1 Location -10/Materials Parts ------- > --- POWER (1) -------- (None) > --- PROPULSION (2) --- (None) > --- UTILITY (2) ------ Small Storage Unit > --- WEAPON (2) ------- (None) > --- INVENTORY (8) ---- Light Ion Engine Light Nuclear Core Improved Heat Sink Improved Terrain Scanner Improved Terrain Scanner Peak State ------------ > --- POWER ------------ Ion Engine > --- PROPULSION ------- Light Treads Light Treads > --- UTILITY ---------- Small Storage Unit Improved Terrain Scanner > --- WEAPON ----------- EM Pulse Gun Small Laser > --- INVENTORY -------- Light Ion Engine Small Laser [Rating: 9] Favorites ----------- Power Ion Engine Engine Ion Engine Propulsion Light Treads Treads Light Treads Utility Small Storage Unit Device Seismic Detector Storage Small Storage Unit Weapon Small Laser Energy Gun Small Laser Ballistic Gun Assault Rifle Build | -11 -10 ------- Run | Yrd Mat Slots Evolved . | . . Power . | . . Propulsion . | . . Utility . | . . Weapon . | . . Parts Attached 14 | 9 5 Power 2 | 1 1 Engine 2 | 1 1 Core . | . . Reactor . | . . Propulsion 2 | 2 . Treads 2 | 2 . Leg . | . . Wheel . | . . Hover . | . . Flight . | . . Utility 4 | 3 1 Device 3 | 2 1 Storage 1 | 1 . Processor . | . . Hackware . | . . Protection . | . . Artifact . | . . Weapon 6 | 3 3 Energy Gun 5 | 3 2 Energy Cannon . | . . Ballistic Gun 1 | . 1 Ballistic Cannon . | . . Launcher . | . . Special Weapon . | . . Impact Weapon . | . . Slashing Weapon . | . . Piercing Weapon . | . . Special Melee Weapon . | . . Unidentified Prototypes . | . . Parts Lost 8 | . 8 Power 1 | . 1 Propulsion 2 | . 2 Utility 1 | . 1 Weapon 4 | . 4 Highest Loss Streak 6 | . 6 To Critical Strikes . | . . Average Slot Usage (%) 92 | . 92 Engine 12 | . 12 Treads 26 | . 26 Device 13 | . 13 Storage 14 | . 14 Energy Gun 19 | . 19 Ballistic Gun 5 | . 5 Peak Build Rating 9 | 9 8 Average Rating 6 | 6 7 On Entrance 3 | . 7 Naked Turns . | . . Heaviest Build 14 | 14 14 Greatest Support 40 | 40 40 Greatest Overweight (x) 1 | . 1 Average Overweight (x) . | . . Largest Inventory Capacity 8 | 8 8 Average Capacity 7 | 7 8 Most Carried 7 | 4 7 Average Carried 4 | 2 5 Final Capacity 8 | 8 8 Final Carried 5 | 4 5 Class Distribution -------------------- 100% | Mutant Dominant Class ---------------- Mutant | -10/Materials Resources | -11 -10 ----------- Run | Yrd Mat Matter Collected 338 | 290 48 Remotely . | . . Salvage Created 479 | 280 199 Parts 38 | 25 13 Haulers Intercepted 1 | . 1 Recyclers Shooed 1 | 1 . Parts Field Recycled . | . . Retrieved Matter . | . . Parts Self-Destructed . | . . Prevented . | . . Kills | -11 -10 ------- Run | Yrd Mat Combat Hostiles Destroyed 3 | . 3 Guns 3 | . 3 Classes Destroyed 5 | 3 2 Worker 5 | 4 1 Tunneler 5 | 5 . Hauler 1 | . 1 Recycler 1 | 1 . Grunt 3 | . 3 Best Kill Streak 3 | 3 2 Combat Bots Only 2 | . 2 Max Kills in Single Turn 1 | 1 1 Gunslinging . | . . Exploded . | . . Melee . | . . Uniques/NPCs Destroyed . | . . Combat | -11 -10 -------- Run | Yrd Mat Hostile Shots Fired 103 | . 103 Missed 29 | . 29 Damage Taken 973 | 78 895 Core 251 | 20 231 Absorbed by Shields . | . . Core Remaining (%) 92 | 92 . Volleys Fired 64 | 34 30 Largest 2 | 1 2 Hottest 80 | 40 80 Shots Fired 78 | 34 44 Gun 78 | 34 44 Cannon . | . . Launcher . | . . Special . | . . Kinetic 6 | . 6 Thermal 33 | . 33 Explosive . | . . Electromagnetic 39 | 34 5 Robot Hit Streak 17 | 5 17 Robot Miss Streak 2 | 2 2 Penetration Max . | . . Secondary Targets . | . . Shots Hit Robots 51 | 22 29 Core Hits 21 | 10 11 Critical Kills . | . . Critical Parts Destroyed . | . . Critical Strikes . | . . Melee Attacks . | . . Impact . | . . Slashing . | . . Piercing . | . . Sneak Attacks . | . . Combat Hostiles . | . . Follow-up Attacks . | . . Damage Inflicted 783 | 388 395 Guns 642 | 297 345 Cannons . | . . Explosions 136 | 91 45 Melee . | . . Ramming 5 | . 5 Kinetic 69 | . 69 Thermal 346 | 91 255 Explosive . | . . Electromagnetic 363 | 297 66 Impact . | . . Slashing . | . . Piercing . | . . Highest Corruption 2 | . 2 Average Corruption 2 | . 2 Corruption Purged . | . . Corruption Blocked . | . . Overload Shots . | . . Overflow Damage 4 | 4 . Projectiles . | . . Explosions 4 | 4 . Melee . | . . Knockbacks . | . . Impact . | . . Kinetic . | . . Secondary . | . . Self-Inflicted Damage 103 | 79 24 Shots 4 | 3 1 Rammed 2 | . 2 Targets Rammed 2 | . 2 Kicked . | . . Crushed . | . . Highest Temperature 159 | 12 159 Average Temperature 61 | 12 66 Received Heat Transfer 516 | . 516 Siege Activations . | . . Robots Corrupted . | . . Combat Hostiles . | . . Parts Fried 3 | 3 . Impact Corruptions . | . . Robots Melted . | . . Combat Hostiles . | . . Parts Melted . | . . Heat Transferred 575 | 50 525 Parts Sabotaged . | . . Parts Stolen . | . . Parts Stripped . | . . Power Chain Reactions 4 | 3 1 Alert | -11 -10 ------- Run | Yrd Mat Peak Influence 166 | 50 166 Initial 32 | . 32 Average 57 | 22 84 Maximum Alert Level . | . . Low Security (%) 100 | 100 100 Level 1 . | . . Level 2 . | . . Level 3 . | . . Level 4 . | . . Level 5 . | . . High Security . | . . Max Security . | . . Squads Dispatched 2 | . 2 Investigation . | . . Extermination . | . . Reinforcement 2 | . 2 Assault . | . . Garrison . | . . Intercept . | . . Searches Triggered . | . . Construction Impeded . | . . Haulers Reinforced . | . . Active Scanning Responses . | . . Cargo Convoy Interrupts . | . . Stealth | -11 -10 --------- Run | Yrd Mat Distress Signals . | . . Communications Jammed . | . . Distress Signals . | . . Times Spotted 17 | . 17 Peak Tracking Total 7 | . 7 Tactical Retreats 1 | . 1 Traps | -11 -10 ------- Run | Yrd Mat Traps Triggered . | . . Indirectly . | . . Trap Hack Attempts . | . . Triggered . | . . Disarmed . | . . Reprogrammed . | . . Reused . | . . Traps Extracted . | . . Installed . | . . Triggered . | . . Machines | -11 -10 ---------- Run | Yrd Mat Machines Disabled . | . . Max in Single Turn . | . . Machines Repaired . | . . Machines Dismantled . | . . Machines Sabotaged . | . . Overloaded Fab Kills . | . . Hacking | -11 -10 --------- Run | Yrd Mat Machines Accessed . | . . Terminals . | . . Fabricators . | . . Repair Stations . | . . Recycling Units . | . . Scanalyzers . | . . Garrison Access . | . . Total Hacks . | . . Successful . | . . Failed . | . . Catastrophic . | . . Database Lockouts . | . . Manual . | . . Terminals . | . . Fabricators . | . . Repair Stations . | . . Recycling Units . | . . Scanalyzers . | . . Garrison Access . | . . Terminal Hacks . | . . Fabricator Hacks . | . . Repair Station Hacks . | . . Recycling Unit Hacks . | . . Scanalyzer . | . . Garrison Access Hacks . | . . Unauthorized Hacks . | . . Terminals . | . . Fabricators . | . . Repair Stations . | . . Recycling Units . | . . Scanalyzers . | . . Garrison Access . | . . Data Cores Recovered . | . . Used . | . . Hacking Detections . | . . Full Trace Events . | . . Feedback Events . | . . Feedback Blocked . | . . Robot Schematics Acquired . | . . Robots Built . | . . Authchips . | . . Time . | . . Total Robot Build Rating . | . . Part Schematics Acquired . | . . Parts Built . | . . Authchips . | . . Time . | . . Total Part Build Rating . | . . Parts Repaired . | . . Time . | . . Parts Recycled . | . . Recycled Matter . | . . Retrieved Matter . | . . Retrieved Components . | . . Parts Scanalyzed . | . . Part Schematics Acquired . | . . Parts Damaged . | . . Bothacking | -11 -10 ------------ Run | Yrd Mat Used RIF Installer . | . . Robots Hacked . | . . Non-combat . | . . Combat . | . . Robot Hacks Applied . | . . Relay Couplers Released . | . . Fabnet Peak Effective % . | . . Robots Rewired . | . . Allies Hacked . | . . Hacks Repelled . | . . Allies | -11 -10 -------- Run | Yrd Mat Total Allies . | . . Largest Group . | . . Highest-Rated Group . | . . Highest-Rated Ally . | . . Total Orders . | . . Ally Attacks . | . . Total Damage . | . . Kills . | . . Allies Corrupted . | . . Allies Melted . | . . Intel | -11 -10 ------- Run | Yrd Mat Robot Analysis Total . | . . Derelict Logs Recovered . | . . Drone Launches . | . . Drone Recoveries . | . . Exploration | -11 -10 ------------- Run | Yrd Mat Turns Passed 833 | 360 473 Spaces Moved 410 | 171 239 Core 17 | 3 14 Treads 393 | 168 225 Legs . | . . Wheels . | . . Hover . | . . Flight . | . . Fastest Speed 50 | 50 100 Average Speed 157 | 158 156 Slowest Speed 160 | 160 160 Overloaded Moves . | . . Propulsion Burnouts . | . . Robots Hopped . | . . Cave-ins Triggered . | . . Exploration Rate (%) 26 | 9 43 Regions Visited 1 Branch Regions . Pre-discovered Areas . | . . Known Exits Taken . | . . Unknown Exits Taken 1 | 1 . Scrap Searched . | . . Spaces Dug . | . . Terrain Destroyed 16 | 10 6 Melee . | . . Projectile . | . . AOE 16 | 10 6 Terrain Rammed . | . . Walls Destroyed . | . . Machines Disabled . | . . Actions | -11 -10 --------- Run | Yrd Mat Total 519 | 226 293 Wait 10 | . 10 Move 409 | 170 239 Hop . | . . Pick Up 17 | 12 5 Fast Attach . | . . Attach 9 | 7 2 Detach . | . . Swap 5 | 2 3 Drop 3 | 1 2 Fire 64 | 34 30 Melee . | . . Ram 1 | . 1 Kick . | . . Crush 1 | . 1 Escape Stasis . | . . Rewire . | . . Trap . | . . Miscellaneous . | . . Route ------- -11/Scrapyard -10/Materials (discovered 2 exits: [*Mat] / [*Min]) History --------- Turn | Location | Event 9 | -11/Scrapyard | Discovered new exit (range 15) 361 | -11/Scrapyard | Entered Materials 362 | -10/Materials | Build established: Mutant 546 | -10/Materials | Discovered new exit (range 7) 700 | -10/Materials | Discovered new exit (range 15) 804 | -10/Materials | Core integrity fell below 50% 824 | -10/Materials | Core integrity fell below 20% 834 | -10/Materials | Destroyed by G-34 Mercenary with Small Laser Last Messages --------------- R-06 Scavenger collects Sml. Battery. T-07 Excavator is excavating. K-01 Serf collects debris. Assault Rifle destroyed. Ion Engine destroyed. Critical hit (Burn: +37). Material Processor disabled. Disabling or destroying stationary machines or terrain requires that a single hit meet or exceed the object's Armor value. Inspect machines by right-clicking on them, and walls via Ctrl-RMB (or as any other object in Keyboard Mode). Hovering the cursor over an object also shows its Armor in the Scan window. Lgt. Treads destroyed. Sml. Laser destroyed. Seismic Detector destroyed. Sml. Laser destroyed. Slammed into G-47 Trooper. Lgt. Treads destroyed. Slammed into G-47 Trooper. Destabilizing: System corrupted (+2). Map ----- +----------------------------------------------------+ | ??????????????????? ????????????????????????????? | | ??????????????????? ??????????????????? ????????? | | ??????????????????? ????????????????? ???????? | | ??????????????????? ??????????????? ???????? | | ??????????????????#^#???????????? ???????? | | ?????????# ???????# #???????????? ???????+ | | ?????????# ??????# #????????????? #?????? | | ?????????# ??????# ###########?? #?????? | | ?????????# ?????# # #?# #####?# | | ??????????# ????# # #?# #"T"### | | ???????????# ???# # """ #?# | | ???????????# #### # """" #?# ! | | ???????????+ # """" #?# | | ???????????# + """""% #?# """ """ # | | ???????????# # """% #?# """ """ # | | ???????????###### # g #?# """ """ # | | ????????????????# ###/#######?# | | ????????????????# ggg#??????# # | | ?????????????#### #??????# ###+##### # | | ???????# #??????# # # # | | ???????# ############# #??????# # # # | | ?????????????????????# #??????# # = + # | | ?????????????????????# #??????# # # # | | ?????????????????????# #??????# + # # | | ?????????????????????# #??????# # # # | | ?????????????????????# @#??????+ # # ### | | ?????????????????????# #??????# # # # | | ?????????????????????# #??????# ######### ? " | | ?????????????????????# #?????## ##??????# ? " | | ????????????## ####### ####### #??????# ? " | | ??????????# !%=% " #??????# # | | ??????????# < = %[="T #??????? # " | | ??????????# !!!=* #??????????" | | ??????????###### ####### #??????????? | | ???????????????# #?????#######?????????? | | ???????????????# """ #?????????????????????? | | ???????????????# """ #????????????????????# | | ???????????????# """ a#????????????????????### | | ???????????????#[? ??????????????????????? | | ?????????????????? ??????????????????????? | | ????????????????? ??????????????????????? | | ????????????????? ########??????????????????????? | | ????????????????????????????????????????????????? | | ????????????????????????????????????????????????? | | ????????????????????????????????????????????????? | | ????????????????????????????????????????????????? | | ????????????????????????????????????????????????? | | ????????????????????????????????????????????????? | | ????????????????????????????????????????????????? | | ????????????????????????????????????????????????? | +----------------------------------------------------+ Best States ------------- Heat Dissipation 25 Energy Generation 10 Energy Capacity 250 Matter Stores 300 Matter Capacity 300 Sight Range 16 Terrain Scan Range 16 Terrain Scan Density 10 Evasion (%) 40 Recoil Reduction 2 Item Schematics ----------------- None Robot Schematics ------------------ None Fabricated ------------ Nothing Alien Tech Used ----------------- None Achievements -------------- None Challenges ------------ None Game ------ Seed ArcPersonalFocus Manual? 0 Play Time 00:13:10 Cumulative 3.9 hours Start 2024.12.27 @ 14:39:20 End 2024.12.27 @ 14:51:01 Sessions 1 Manual Loads 0 Difficulty Rogue Special Mode None Game No. 4 Rogue 4 Adventurer 0 Explorer 0 Win Type - Total 0 Types 0/0/0/0/0/0/0/0/0 Lore% 4 Gallery% 6 Achievement% 7 Wizard Run 0 Options --------- Layout 1 ASCII 0 Keyboard 0 Movement Numpad Keybinds 0 Fullscreen 1 Font 32/SmallcapsGlow Map View 77x35 Zoom Use 0% Tactical HUD 0 Map Filters NONE Filters NONE Steam 1 RUN: 05f56566-d0c8-49c8-96e2-e41a99082371